fUSD/lending_fUSD_20240129
["ID","MTS","AMOUNT","RATE_DAILY","PERIOD"]
[312950608,1706513438645,-250.0,0.00021918,2]
[312950609,1706513438654,-169.8,0.00022046,2]
[312950610,1706513438664,-169.8,0.00022274,2]
[312950611,1706513438673,-169.8,0.00022501,2]
[312950612,1706513438683,-150.0,0.00022656,2]
[312950614,1706513438693,-169.8,0.00022728,2]
[312950616,1706513438702,-375.33629388,0.00022768,3]
[312950618,1706513438711,-166.322826,0.00022768,4]
[312950620,1706513438722,-507.49453704,0.00022768,2]
[312950622,1706513438731,-523.05,0.0002277,2]
[312950624,1706513438741,-206.3669,0.00022799,2]
[312950625,1706513438750,-933.2407,0.00022799,2]
[312950626,1706513438759,-601.6353,0.00022799,2]
[312950627,1706513438768,-15729.1268,0.00022799,2]
[312950628,1706513438778,-251.7004,0.00022799,2]
[312950629,1706513438787,-304.56823561,0.00022883,2]
[312950630,1706513438796,-1389.1805,0.00022898,2]
[312950631,1706513438805,-1000.0,0.00022898,2]
[312950632,1706513438816,-4642.3803,0.00022898,2]
[312950633,1706513438825,-24799.03308884,0.00022899,2]
[312950634,1706513438844,-390.83555484,0.00022899,2]
[312950636,1706513440526,-536.594,0.00022899,2]
[312950637,1706513440635,-4353.86955632,0.00022899,2]
[312950638,1706513440645,-1620.58998387,0.000229,2]
[312950639,1706513440655,-196.30035169,0.000229,4]
[312950640,1706513440664,-769.56819591,0.000229,2]
[312950641,1706513440673,-5999.2678207,0.000229,2]
[312950642,1706513440683,-215.6535986,0.000229,2]
[312950643,1706513440692,-169.8,0.00022956,2]
[312950644,1706513440702,-628.30579649,0.00022997,2]
[312950645,1706513440711,-8530.77204011,0.00022997,2]
[312950646,1706513440722,-239.09843678,0.00022997,2]
[312950647,1706513440731,-155.9650335,0.00022997,2]
[312950648,1706513440740,-283.75575974,0.00022997,2]
[312950649,1706513440749,-155.7231014,0.00022997,2]
[312950650,1706513440759,-1157.75991458,0.00022997,2]
[312950651,1706513440768,-268.46172935,0.00022997,2]
[312950652,1706513440778,-248.98694023,0.00022997,2]
[312950653,1706513440787,-310.84360459,0.00022997,2]
[312950654,1706513440797,-156.11983464,0.00022997,2]
[312950655,1706513440806,-1092.49784986,0.00022998,3]
[312950656,1706513440815,-281.66981633,0.00022998,2]
[312950657,1706513440824,-7126.57464017,0.00022998,2]
[312950658,1706513440833,-355.01316218,0.00022998,2]
[312950659,1706513440843,-178.08479796,0.00022998,2]
[312950660,1706513440852,-155.63005136,0.00022998,2]
[312950661,1706513440862,-231.8498432,0.00022998,2]
[312950662,1706513440871,-155.52827129,0.00022998,2]
[312950663,1706513440881,-284.43738038,0.00022998,2]
[312950664,1706513440890,-460.57752375,0.00022998,2]
[312950665,1706513440899,-4642.46202328,0.00022998,2]
[312950666,1706513440909,-1048.28635536,0.00022998,2]
[312950667,1706513440918,-3017.2355613,0.00022998,2]
[312950668,1706513440927,-206.12359319,0.00022999,2]
[312950669,1706513440936,-524.28228198,0.00022999,2]
[312950670,1706513440949,-650.59751903,0.00022999,2]
[312950671,1706513440959,-28569.27228786,0.00022999,2]
[312950715,1706513443101,-500.0,0.00021637,2]
[312950716,1706513443110,-1765.54595803,0.00022999,2]
[312950717,1706513443213,-9224.23970759,0.00022999,2]
[312950718,1706513443249,-3544.20379313,0.00022999,2]
[312950719,1706513443270,-1267.53629767,0.00022999,2]
[312950723,1706513446130,-445.85517325,0.000229,2]
[312950724,1706513446142,-94.22609531,0.000229,2]
[312950725,1706513446151,-733.41030907,0.00022998,2]
[312950726,1706513446167,-1919.19195546,0.00022998,2]
[312950727,1706513446176,-22369.79423211,0.00022999,2]
[312950728,1706513446188,-15039.63820285,0.00022999,2]
[312950729,1706513446203,-8039.64112112,0.00022999,2]
[312950730,1706513446248,-1768.46075324,0.00022999,2]
[312950731,1706513446303,-2618.79815569,0.00022999,2]
[312950732,1706513447535,-126177.0884246,0.00022999,2]
[312950733,1706513447546,-3310.93377146,0.00022999,2]
[312950734,1706513447569,-3630.89559164,0.00022999,2]
[312950735,1706513447581,-322.8916,0.00022999,2]
[312950736,1706513688703,176.3,0.00016712,2]
[312950737,1706513842285,158.57,0.00020526,2]
[312950739,1706514303654,158.57,0.00020501,2]
[312950756,1706514632144,-329.66712704,0.00022176,2]
[312950758,1706514632202,-850.0,0.00022176,2]
[312950759,1706514632315,-456.81059646,0.00022176,2]
[312950760,1706514632329,-2209.59114363,0.00022176,2]
[312950761,1706514632340,-2637.53466704,0.00022176,2]
[312950762,1706514632371,-1317.58938671,0.00022176,2]
[312950763,1706514632380,-1713.14078343,0.00022177,2]
[312950764,1706514632390,-1044.21504553,0.00022177,2]
[312950765,1706514632398,-691.03234566,0.00022178,2]
[312950766,1706514632408,-691.03234566,0.00022178,2]
[312950767,1706514632417,-500.0,0.00022179,2]
[312950768,1706514632426,-189.81833792,0.0002218,2]
[312950769,1706514632437,-3459.17476567,0.00022264,2]
[312950770,1706514632448,-350.0,0.00022264,2]
[312950773,1706514632852,-447.13079968,0.00022264,2]
[312950774,1706514632862,-200.0,0.00022265,2]
[312950775,1706514632872,-150.0,0.00022283,2]
[312950776,1706514632881,-479.01122374,0.000223,2]
[312950777,1706514632890,-312.83,0.00022356,2]
[312950778,1706514632899,-393.08559798,0.00022379,2]
[312950779,1706514639193,-406.91440202,0.00022379,2]
[312950780,1706514639203,-965.37,0.0002245,2]
[312950781,1706514639212,-5524.39,0.0002245,2]
[312950782,1706514639221,-323.45,0.00022796,2]
[312950783,1706514639230,-527.79302722,0.000229,3]
[312950784,1706514639240,-1632.91254803,0.000229,2]
[312950785,1706514639249,-819.44,0.000229,2]
[312950786,1706514639258,-1102.32906575,0.000229,2]
[312950787,1706514639267,-189.81833791,0.000229,2]
[312950788,1706514639276,-14310.15612621,0.00022993,2]
[312950789,1706514639288,-491.64613668,0.00022993,2]
[312950790,1706514639336,-2333.36605109,0.00022993,2]
[312950791,1706514639348,-4396.51692642,0.00022993,2]
[312950792,1706514639483,-2116.07121799,0.00022993,2]
[312950802,1706514640876,-8239.65553703,0.00022993,2]
[312950803,1706514640885,-276.13492421,0.00022997,2]
[312950804,1706514640895,-309.85750688,0.00022997,2]
[312950805,1706514640904,-3062.83152701,0.00022997,2]
[312950806,1706514640914,-3626.06527258,0.00022997,2]
[312950807,1706514640923,-504.38788005,0.00022997,2]
[312950808,1706514640932,-400.0,0.00022997,2]
[312950809,1706514640945,-551.29405049,0.00022997,2]
[312950810,1706514640954,-699.19928448,0.00022997,2]
[312950811,1706514640962,-1855.69106957,0.00022997,2]
[312950812,1706514640971,-218.358611,0.00022997,2]
[312950813,1706514640980,-2809.26433173,0.00022997,2]
[312950814,1706514640990,-155.26893206,0.00022997,2]
[312950815,1706514640999,-985.353,0.00022997,2]
[312950816,1706514641008,-4623.87518628,0.00022997,2]
[312950817,1706514641017,-181.87084846,0.00022997,2]
[312950818,1706514641027,-2046.8338596,0.00022997,4]
[312950819,1706514641036,-460.51233359,0.00022997,2]
[312950820,1706514641045,-486.715787,0.00022997,2]
[312950821,1706514641054,-1192.04708021,0.00022997,2]
[312950822,1706514641063,-2143.20144114,0.00022997,2]
[312950823,1706514641072,-699.24103246,0.00022997,2]
[312950824,1706514641082,-250.44389232,0.00022997,2]
[312950825,1706514641091,-464.33509394,0.00022997,2]
[312950826,1706514641101,-155.00042367,0.00022998,2]
[312950827,1706514641110,-1267.51989779,0.00022999,3]
[312950828,1706514641120,-64353.49309515,0.00022999,2]
[312950829,1706514641614,-268.56433013,0.00022999,2]
[312950859,1706514646248,-360.05417904,0.000229,2]
[312950860,1706514646258,-500.0,0.00022998,2]
[312950861,1706514646267,-4834.60066847,0.00022998,2]
[312950862,1706514646276,-8738.70573822,0.00022999,2]
[312950863,1706514646304,-1610.11254484,0.00022999,2]
[312950864,1706514646315,-346.24935774,0.00022999,2]
[312950865,1706514646546,-1445.92927751,0.00022999,2]
[312951005,1706514793738,455.45642413,0.00020466,2]
[312951006,1706514855424,217.3,0.00020081,2]
[312951008,1706514967047,155.45,0.000302,120]
[312951009,1706515067404,-165.22433178,0.00021671,2]
[312951010,1706515067427,-1713.14078343,0.00021671,2]
[312951011,1706515067450,-500.0,0.00021672,2]
[312951012,1706515067473,-232.54654319,0.00021673,2]
[312951013,1706515067495,-691.03234566,0.00021684,2]
[312951014,1706515067518,-300.0,0.00021684,2]
[312951015,1706515067541,-10906.88272585,0.00021685,2]
[312951016,1706515067565,-1259.58690738,0.00021688,2]
[312951017,1706515067588,-741.15600948,0.00021689,2]
[312951018,1706515067612,-840.0,0.00021694,2]
[312951019,1706515067637,-250.0,0.00021741,2]
[312951020,1706515067661,-13700.43035323,0.00021741,2]
[312951021,1706515095510,-4800.0,0.00021741,2]
[312951022,1706515141765,-5399.56964677,0.00021741,2]
[312951023,1706515141789,-167.85,0.00021749,2]
[312951024,1706515141816,-334.07,0.00021749,2]
[312951025,1706515141840,-693.49,0.00021884,2]
[312951026,1706515141864,-200.0,0.00021915,2]
[312951027,1706515141888,-856.49,0.00021929,2]
[312951028,1706515141912,-173.6,0.00021967,2]
[312951029,1706515141937,-150.37,0.00021968,2]
[312951030,1706515145179,500.0,0.0002174,2]
[312951031,1706515306761,206.43,0.00019949,2]
[312951032,1706515418407,-500.0,0.00021728,2]
[312951033,1706515458263,328.0,0.00021728,2]
[312951034,1706515603310,200.0,0.0002161,2]
[312951035,1706515654378,208.0,0.00020938,2]
[312951036,1706515654561,208.0,0.00026518,10]
[312951037,1706515674520,1473.23,0.00021663,2]
[312951038,1706515750768,2000.0,0.00021698,2]
[312951039,1706515765341,600.0,0.00021684,2]
[312951040,1706515815873,230.98,0.00019813,2]
[312951063,1706515831534,-388.06743479,0.00021754,2]
[312951064,1706515831544,-158.18194825,0.00021755,2]
[312951065,1706515831553,-37.41207763,0.00021766,2]
[312951066,1706515831591,-126.92792237,0.00021766,2]
[312951067,1706515831600,-175.05,0.0002181,2]
[312951068,1706515831609,-150.37,0.00021866,2]
[312951069,1706515831618,-29.8810813,0.00021918,2]
[312951070,1706515831630,-220.1189187,0.00021918,2]
[312951071,1706515831639,-158.18194822,0.00021984,2]
[312951072,1706515831648,-499.99,0.00021984,2]
[312951073,1706515831668,-0.76209971,0.00022077,2]
[312951109,1706515837365,-230.21790029,0.00022077,2]
[312951112,1706515837374,-578.53240748,0.00022081,2]
[312951114,1706515837385,-642.70186122,0.00022081,2]
[312951116,1706515837395,-98.57537833,0.00022094,2]
[312951120,1706515837423,-76.47462167,0.00022094,2]
[312951122,1706515837432,-158.18194822,0.00022213,2]
[312951125,1706515837442,-186.23226501,0.00022306,2]
[312951133,1706515837789,-113.76773499,0.00022306,2]
[312951134,1706515837799,-1717.22121106,0.00022307,2]
[312951135,1706515837808,-1221.2342687,0.00022322,2]
[312951136,1706515837817,-175.05,0.00022378,2]
[312951137,1706515837826,-158.18194822,0.00022442,2]
[312951138,1706515837835,-1221.2342687,0.00022473,2]
[312951139,1706515837844,-175.05,0.00022662,2]
[312951140,1706515837853,-158.18194822,0.00022671,2]
[312951141,1706515837863,-598.59876343,0.00022767,2]
[312951142,1706515837874,-989.8679,0.00022799,2]
[312951143,1706515837885,-1983.6637,0.000228,2]
[312951144,1706515837894,-500.0,0.00022816,2]
[312951145,1706515837903,-1702.762,0.00022863,2]
[312951146,1706515837913,-4223.477,0.00022863,2]
[312951147,1706515837923,-681.82262461,0.00022863,2]
[312951148,1706515838133,-554.10714686,0.00022863,2]
[312951149,1706515838193,-1705.21222853,0.00022863,2]
[312951150,1706515838204,-5640.83,0.00022863,2]
[312951151,1706515838213,-645.48524272,0.00022863,2]
[312951152,1706515838252,-2637.91035735,0.00022863,2]
[312951154,1706515838263,-4881.38639993,0.00022863,2]
[312951156,1706515838273,-16208.84863352,0.00022863,2]
[312951175,1706515839975,-3665.80936648,0.00022863,2]
[312951176,1706515839984,-2323.705,0.00022863,2]
[312951177,1706515839993,-1051.425,0.00022863,2]
[312951178,1706515840002,-325.89,0.00022863,2]
[312951179,1706515840012,-721.17213136,0.00022897,2]
[312951180,1706515840021,-278.79327067,0.00022898,3]
[312951181,1706515840031,-232.58522559,0.00022898,2]
[312951182,1706515840040,-921.02248803,0.00022898,2]
[312951183,1706515840050,-166.85381922,0.00022898,2]
[312951184,1706515840059,-239.71997239,0.00022898,2]
[312951185,1706515840068,-2610.6338,0.00022899,2]
[312951186,1706515840077,-8846.2584,0.00022899,2]
[312951187,1706515840086,-15327.9979113,0.00022899,2]
[312951188,1706515840761,-386.08831929,0.00022899,2]
[312951208,1706515843633,-6404.49287643,0.00022899,2]
[312951209,1706515843645,-16745.20339298,0.00022899,2]
[312951210,1706515843654,-45914.92661513,0.000229,2]
[312951211,1706515843666,-837.93466786,0.000229,2]
[312951212,1706515843677,-635.0094357,0.000229,2]
[312951213,1706515843692,-943.24512146,0.000229,2]
[312951214,1706515843702,-535.11206022,0.000229,2]
[312951215,1706515843717,-664.00152642,0.000229,2]
[312951216,1706515843728,-17750.45617321,0.000229,2]
[312951217,1706515843737,-1000.0,0.000229,2]
[312951218,1706515843747,-1496.83650237,0.000229,2]
[312951219,1706515843756,-158.18194822,0.000229,2]
[312951220,1706515843765,-240.03611936,0.000229,2]
[312951221,1706515843774,-227.09723137,0.000229,2]
[312951222,1706515843784,-734.88604382,0.000229,2]
[312951223,1706515843793,-175.05,0.00022947,2]
[312951224,1706515843802,-800.0,0.00022959,2]
[312951225,1706515843812,-405.19,0.00022959,2]
[312951226,1706515843821,-630.20998212,0.0002299,3]
[312951227,1706515843830,-2430.0,0.0002299,2]
[312951228,1706515843840,-1370.959,0.0002299,2]
[312951229,1706515843849,-413.926,0.0002299,2]
[312951230,1706515843858,-967.522,0.0002299,2]
[312951231,1706515843868,-846.0,0.0002299,2]
[312951232,1706515843878,-1870.631,0.0002299,2]
[312951233,1706515843889,-451.0,0.0002299,2]
[312951234,1706515843898,-3009.0,0.0002299,2]
[312951235,1706515843907,-1263.805,0.0002299,2]
[312951236,1706515843916,-216.483,0.0002299,2]
[312951237,1706515843928,-1233.0,0.0002299,2]
[312951238,1706515843937,-704.0,0.0002299,2]
[312951240,1706515843946,-448.413,0.0002299,2]
[312951242,1706515843956,-237.523,0.0002299,2]
[312951244,1706515843965,-628.723,0.0002299,2]
[312951246,1706515843975,-1980.505,0.0002299,2]
[312951248,1706515843984,-82.95973318,0.0002299,2]
[312951252,1706515844012,-917.04026682,0.0002299,2]
[312951254,1706515844022,-1136.982,0.0002299,2]
[312951255,1706515844031,-881.777,0.0002299,2]
[312951256,1706515844040,-152.423,0.0002299,2]
[312951257,1706515844050,-375.798,0.0002299,2]
[312951258,1706515844059,-308.32071311,0.00022995,2]
[312951259,1706515844069,-156.23504924,0.00022995,2]
[312951260,1706515844079,-1257.66975103,0.00022995,2]
[312951261,1706515844088,-155.70319924,0.00022995,2]
[312951262,1706515844098,-155.16243481,0.00022995,2]
[312951263,1706515844107,-524.41305345,0.00022995,2]
[312951264,1706515844116,-504.52526623,0.00022995,2]
[312951265,1706515844126,-491.78912065,0.00022995,2]
[312951266,1706515844136,-160.81397131,0.00022995,2]
[312951267,1706515844145,-203.83709043,0.00022995,2]
[312951268,1706515844154,-5221.14240979,0.00022995,2]
[312951269,1706515844164,-4531.44073869,0.00022995,2]
[312951270,1706515844174,-282.80177468,0.00022995,2]
[312951271,1706515844183,-155.47609059,0.00022995,2]
[312951272,1706515844192,-239.2633993,0.00022995,2]
[312951273,1706515844202,-155.89711309,0.00022995,2]
[312951274,1706515844212,-10586.42210638,0.00022995,2]
[312951275,1706515844222,-2420.84521669,0.00022995,2]
[312951276,1706515844231,-927.58245799,0.00022995,2]
[312951277,1706515844241,-162.40501742,0.00022995,2]
[312951278,1706515844251,-280.65619007,0.00022995,2]
[312951279,1706515844261,-674.35047883,0.00022995,2]
[312951280,1706515844270,-367.57107337,0.00022995,2]
[312951281,1706515844280,-298.05134141,0.00022995,2]
[312951282,1706515844289,-584.957157,0.00022995,2]
[312951283,1706515844299,-155.35242651,0.00022995,2]
[312951284,1706515844309,-1783.26145286,0.00022995,2]
[312951285,1706515844318,-157.03170101,0.00022995,2]
[312951286,1706515844328,-157.12810468,0.00022995,2]
[312951287,1706515844337,-155.39275973,0.00022995,2]
[312951288,1706515844347,-165.03544175,0.00022995,2]
[312951289,1706515844357,-197.17718022,0.00022995,2]
[312951290,1706515844367,-222.54252038,0.00022995,2]
[312951291,1706515844376,-263.7290691,0.00022995,2]
[312951292,1706515844386,-313.82257928,0.00022995,2]
[312951293,1706515844395,-2612.65896919,0.00022995,2]
[312951294,1706515844405,-318.7071778,0.00022995,2]
[312951295,1706515844414,-1046.62349539,0.00022995,2]
[312951296,1706515844425,-243.67656851,0.00022995,2]
[312951297,1706515844434,-3332.39700873,0.00022995,2]
[312951298,1706515844444,-230.72196555,0.00022995,2]
[312951299,1706515844454,-354.78394109,0.00022995,2]
[312951300,1706515844464,-155.53137466,0.00022995,2]
[312951301,1706515844474,-3046.49828523,0.00022995,2]
[312951302,1706515844483,-155.70292767,0.00022995,2]
[312951303,1706515844492,-3864.01463895,0.00022995,2]
[312951304,1706515844502,-155.0,0.00022995,2]
[312951305,1706515844511,-525.40921375,0.00022995,2]
[312951306,1706515844520,-191.34918625,0.00022995,2]
[312951307,1706515844530,-200.87232567,0.00022995,2]
[312951308,1706515844539,-178.99998672,0.00022995,2]
[312951309,1706515844548,-155.56158178,0.00022995,2]
[312951310,1706515844558,-199.21031868,0.00022995,2]
[312951311,1706515844567,-177.97223727,0.00022995,2]
[312951312,1706515844577,-172.09680919,0.00022995,2]
[312951313,1706515844586,-543.55682798,0.00022995,2]
[312951314,1706515844595,-155.2393239,0.00022995,2]
[312951315,1706515844605,-4299.25140169,0.00022995,2]
[312951316,1706515844614,-481.69275539,0.00022995,2]
[312951317,1706515844624,-155.30973275,0.00022995,2]
[312951318,1706515844633,-5449.93104079,0.00022995,2]
[312951319,1706515844642,-345.6823988,0.00022995,2]
[312951320,1706515844652,-3148.06260981,0.00022996,2]
[312951321,1706515844662,-1000.0,0.00022997,2]
[312951322,1706515844672,-953.45917981,0.00022997,2]
[312951323,1706515844681,-9769.5,0.00022997,2]
[312951324,1706515844691,-155.0,0.00022997,2]
[312951325,1706515844699,-155.51497894,0.00022997,2]
[312951326,1706515844708,-7669.77616698,0.00022997,2]
[312951327,1706515844718,-155.53197542,0.00022997,2]
[312951328,1706515844727,-314.26936318,0.00022997,2]
[312951329,1706515844736,-3313.10843042,0.00022997,2]
[312951330,1706515844746,-501.41289716,0.00022997,2]
[312951331,1706515844755,-2140.10112252,0.00022997,2]
[312951332,1706515844764,-4628.12499057,0.00022997,2]
[312951333,1706515844773,-337.76205171,0.00022997,2]
[312951334,1706515844782,-698.07231357,0.00022997,2]
[312951335,1706515844791,-1071.96370442,0.00022997,2]
[312951336,1706515844800,-33051.65465518,0.00022997,2]
[312951337,1706515844810,-1299.88621934,0.00022997,2]
[312951338,1706515844819,-1871.50987073,0.00022997,2]
[312951339,1706515844828,-285.40187788,0.00022997,2]
[312951340,1706515844837,-280.43561941,0.00022997,2]
[312951341,1706515844847,-219.60859181,0.00022997,2]
[312951342,1706515844856,-198.83125668,0.00022997,2]
[312951343,1706515844866,-155.0,0.00022997,2]
[312951344,1706515844876,-1264.13989556,0.00022997,2]
[312951345,1706515844889,-124601.67454101,0.00022997,2]
[312951346,1706515844899,-155.84338638,0.00022997,2]
[312951347,1706515844909,-291.15267258,0.00022997,2]
[312951348,1706515844918,-2148.1042989,0.00022997,2]
[312951349,1706515844930,-251.03417983,0.00022997,2]
[312951350,1706515844939,-2329.65372876,0.00022997,2]
[312951351,1706515844949,-534.17583782,0.00022997,2]
[312951352,1706515844958,-155.36555975,0.00022997,2]
[312951353,1706515844968,-362.14319027,0.00022997,2]
[312951354,1706515844978,-229.45588031,0.00022997,2]
[312951355,1706515844987,-155.26930997,0.00022997,2]
[312951356,1706515844996,-156.00110033,0.00022997,2]
[312951357,1706515845006,-155.30265104,0.00022997,2]
[312951358,1706515845015,-1144.18730156,0.00022997,2]
[312951359,1706515845025,-1566.05857269,0.00022997,2]
[312951360,1706515845034,-155.34557588,0.00022997,2]
[312951361,1706515845043,-2523.12692223,0.00022998,2]
[312951362,1706515845054,-129810.8539442,0.00022999,2]
[312951363,1706515845064,-151.05979893,0.00022999,2]
[312951364,1706515845074,-1768.62519921,0.00022999,2]
[312951365,1706515845084,-2000.0,0.00022999,2]
[312951366,1706515845093,-200.0,0.00022999,2]
[312951367,1706515845102,-379962.23501321,0.00023,2]
[312951370,1706515845447,-1157.25362323,0.00023,2]
[312951371,1706515845458,-3799.20605415,0.00023,2]
[312951372,1706515845471,-1739.55167626,0.00023,2]
[312951373,1706515845562,-1109.59771516,0.00023,2]
[312951374,1706515845574,-483.84204454,0.00023,2]
[312951375,1706515845585,-736.26116918,0.00023,2]
[312951376,1706515845596,-33413.09943644,0.00023,2]
[312951377,1706515845623,-444.7430055,0.00023,2]
[312951378,1706515845633,-404.48230813,0.00023,2]
[312951379,1706515847699,-388.06743479,0.00022994,2]
[312951380,1706515847709,-25867.04756666,0.00023,2]
[312951381,1706515847724,-20518.24749346,0.00023,2]
[312951382,1706515847771,-402.40279773,0.00023,2]
[312951383,1706515847783,-9035.05758315,0.00023,2]
[312951384,1706515847972,-5539.74377319,0.00023,2]
[312951385,1706515847987,-2861.5891611,0.00023,2]
[312951386,1706515847998,-333.70314074,0.00023,2]
[312951387,1706515848009,-419.59727266,0.00023,2]
[312951388,1706516053722,-202.18313352,0.00021997,2]
[312951389,1706516053744,-1797.81686648,0.00021998,2]
[312951390,1706516055395,-1386.469639,0.00021998,2]
[312951391,1706516094844,155.92380643,0.00020697,2]
[312951392,1706516312854,242.74,0.00020154,2]
[312951393,1706516359326,214.86655457,0.00021975,2]
[312951394,1706516359349,2000.0,0.00021975,2]
[312951395,1706516359370,2000.0,0.00021975,2]
[312951396,1706516359391,2000.0,0.00021975,2]
[312951397,1706516359413,2000.0,0.00021975,2]
[312951398,1706516359433,2000.0,0.00021975,2]
[312951399,1706516359455,2000.0,0.00021975,2]
[312951400,1706516359477,2000.0,0.00021975,2]
[312951401,1706516359499,2000.0,0.00021975,2]
[312951402,1706516359520,2000.0,0.00021975,2]
[312951403,1706516359542,2000.0,0.00021975,2]
[312951404,1706516359563,2000.0,0.00021975,2]
[312951405,1706516359584,1685.13344543,0.00021975,2]
[312951406,1706516430052,314.86655457,0.00021975,2]
[312951407,1706516430075,2000.0,0.00021975,2]
[312951408,1706516433417,155.80530998,0.00020697,2]
[312951409,1706516434867,-1183.70804756,0.00021975,2]
[312951410,1706516434894,-202.18313352,0.00021999,2]
[312951411,1706516440511,614.10881892,0.00021865,2]
[312951412,1706516440535,2000.0,0.00021865,2]
[312951413,1706516440561,1843.03268382,0.00021865,2]
[312951414,1706516458526,156.96731618,0.00021865,2]
[312951415,1706516458548,1843.03268382,0.00021865,2]
[312951416,1706516499675,156.96731618,0.00021999,2]
[312951417,1706516499697,45.21581734,0.00021999,2]
[312951418,1706516509841,250.0,0.00021946,2]
[312951419,1706516514874,1704.78418266,0.00021999,2]
[312951420,1706516514896,658.66229097,0.00021999,2]
[312951421,1706516526092,-353.22,0.00022,2]
[312951422,1706516526119,-267.81714671,0.00022,2]
[312951423,1706516558076,618.66772505,0.00021919,2]
[312951424,1706516605465,1821.87,0.00022,2]
[312951425,1706516613603,154.48396555,0.00022,2]
[312951426,1706516613829,1100.14824388,0.00021919,2]
[312951427,1706516624531,633.23406729,0.00021809,2]
[312951428,1706516624555,1341.33770903,0.00021809,2]
[312951429,1706516624577,1030.61461748,0.00021809,2]
[312951430,1706516631820,168.68331054,0.00021919,2]
[312951431,1706516661301,250.0,0.00021952,2]
[312951432,1706516746333,263.0,0.00020049,2]
[312951433,1706516785660,4267.75783794,0.0002193,2]
[312951434,1706516785685,4949.44114848,0.0002193,2]
[312951435,1706516785709,949.44114848,0.0002193,2]
[312951436,1706516785732,949.44114848,0.0002193,2]
[312951437,1706516785755,949.44114848,0.0002193,2]
[312951438,1706516785778,949.44114848,0.0002193,2]
[312951439,1706516785800,969.38538252,0.0002193,2]
[312951440,1706516785822,2000.0,0.0002193,2]
[312951441,1706516785842,2000.0,0.0002193,2]
[312951442,1706516785863,593.22103714,0.0002193,2]
[312951443,1706516819036,1406.77896286,0.00021943,2]
[312951444,1706516819056,593.22103714,0.00021943,2]
[312951445,1706516838367,170.97,0.00021943,2]
[312951447,1706516891833,737.6,0.00021976,2]
[312951464,1706517031611,-202.18313352,0.00022007,2]
[312951465,1706517031619,-1000.0,0.00022008,2]
[312951466,1706517031628,-2495.98587874,0.00022009,2]
[312951467,1706517031639,-701.14798559,0.00022009,2]
[312951469,1706517031648,-430.09686686,0.00022012,2]
[312951470,1706517031657,-258.05,0.00022014,2]
[312951471,1706517031666,-262.4,0.00022017,2]
[312951472,1706517031675,-200.0,0.00022025,2]
[312951473,1706517031684,-571.05858848,0.00022025,2]
[312951474,1706517032347,-498.20896286,0.00022025,2]
[312951475,1706517032360,-308.92244866,0.00022025,2]
[312951476,1706517032369,-154.91,0.00022095,2]
[312951477,1706517032378,-2217.44,0.00022149,2]
[312951478,1706517032387,-154.91,0.00022223,2]
[312951479,1706517032397,-150.0,0.00022306,2]
[312951480,1706517032406,-2480.58290175,0.00022307,2]
[312951481,1706517032415,-263.0,0.00022313,2]
[312951482,1706517032423,-154.91,0.00022351,2]
[312951483,1706517032433,-2.19943175,0.00022479,2]
[312951493,1706517037649,-152.71056825,0.00022479,2]
[312951494,1706517037659,-4883.0,0.00022542,2]
[312951495,1706517037669,-154.91,0.00022607,2]
[312951496,1706517037679,-1221.23426871,0.00022719,2]
[312951497,1706517037689,-154.91,0.00022734,2]
[312951498,1706517037699,-495.4850043,0.00022767,2]
[312951499,1706517037709,-9252.5342,0.000228,2]
[312951500,1706517037718,-578.0194,0.000228,2]
[312951501,1706517037728,-154.91,0.00022862,2]
[312951502,1706517037737,-1367.55,0.00022877,2]
[312951503,1706517037748,-158.38308018,0.00022881,2]
[312951504,1706517037757,-1486.30502153,0.0002289,2]
[312951505,1706517037777,-484.61137847,0.0002289,2]
[312951506,1706517037787,-5655.2671,0.00022897,2]
[312951507,1706517037796,-959.0027,0.00022899,2]
[312951508,1706517037806,-263.334,0.000229,2]
[312951509,1706517037816,-863.5687,0.000229,2]